bitfinex/quotes_BTCUSD_20241004
["timestamp","ask_amount","ask_price","bid_price","bid_amount"]
[1728070574805,3.02962412,62458.0,62457.0,5.2408251]
[1728070575030,3.06873709,62458.0,62457.0,5.0807151]
[1728070575481,3.08273709,62458.0,62457.0,5.0807151]
[1728070575695,3.23043411,62458.0,62457.0,5.0807151]
[1728070576212,3.08159509,62458.0,62457.0,4.9526271]
[1728070576387,3.08159509,62458.0,62457.0,4.9206051]
[1728070576832,3.06759509,62458.0,62457.0,4.9206051]
[1728070577050,3.08159509,62458.0,62457.0,4.8885831]
[1728070577259,3.08159509,62458.0,62457.0,4.7925171]
[1728070577503,2.74960838,62458.0,62457.0,4.7925171]
[1728070578580,2.72449541,62458.0,62457.0,4.7604951]
[1728070579005,2.89329541,62458.0,62457.0,4.7284731]
[1728070579227,3.05648212,62458.0,62457.0,4.6964511]
[1728070579447,3.05648212,62458.0,62457.0,4.6003851]
[1728070579879,3.05648212,62458.0,62457.0,4.5683631]
[1728070580561,3.05648212,62458.0,62457.0,4.5043191]
[1728070580781,3.05593098,62458.0,62457.0,4.5043191]
[1728070581435,3.05593098,62458.0,62457.0,4.4722971]
[1728070581646,3.08104401,62458.0,62457.0,4.4082531]
[1728070581872,3.08104401,62458.0,62457.0,4.37538171]
[1728070582790,3.05593098,62458.0,62457.0,4.37538171]
[1728070583466,3.05593098,62458.0,62457.0,4.34335971]
[1728070583673,3.05593098,62458.0,62457.0,4.31133771]
[1728070583899,3.05593098,62458.0,62457.0,4.24729371]
[1728070584378,3.05593098,62458.0,62457.0,4.11920571]
[1728070584786,3.05593098,62458.0,62457.0,4.08718371]
[1728070585229,3.05593098,62458.0,62457.0,4.02313971]
[1728070585438,2.56545028,62458.0,62457.0,3.99111771]
[1728070585667,3.08065271,62458.0,62457.0,3.95909571]
[1728070585867,6.50165271,62458.0,62457.0,3.83100771]
[1728070586085,6.50165271,62458.0,62457.0,3.79898571]
[1728070586935,6.50165271,62458.0,62457.0,3.76696371]
[1728070587164,5.87699845,62458.0,62457.0,3.67089771]
[1728070587379,4.35710302,62458.0,62457.0,3.67089771]
[1728070587658,4.32698962,62458.0,62457.0,3.67089771]
[1728070587881,3.93698962,62458.0,62457.0,3.67089771]
[1728070588094,3.52698962,62458.0,62457.0,3.67089771]
[1728070588328,3.14257798,62458.0,62457.0,3.67089771]
[1728070588541,2.84269271,62458.0,62457.0,3.67089771]
[1728070588757,1.00469271,62458.0,62457.0,3.67089771]
[1728070588965,0.99069271,62458.0,62457.0,3.67089771]
[1728070589398,1.09069271,62458.0,62457.0,3.67089771]
[1728070589618,1.10469271,62458.0,62457.0,3.67089771]
[1728070589835,1.11580088,62458.0,62457.0,3.67089771]
[1728070590060,1.13880088,62458.0,62457.0,3.67089771]
[1728070590303,1.12480088,62458.0,62457.0,3.67089771]
[1728070590816,1.13880088,62458.0,62457.0,3.67089771]
[1728070591036,1.12480088,62458.0,62457.0,3.67089771]
[1728070591258,1.13880088,62458.0,62457.0,3.67089771]
[1728070591490,1.15280088,62458.0,62457.0,3.67089771]
[1728070593399,1.14557255,62458.0,62457.0,3.67089771]
[1728070594132,1.31075926,62458.0,62457.0,3.67089771]
[1728070594318,1.00586055,62458.0,62457.0,3.67089771]
[1728070594549,6.05586055,62458.0,62457.0,3.67089771]
[1728070594765,5.89267384,62458.0,62457.0,3.67089771]
[1728070595867,6.05437437,62458.0,62457.0,3.67089771]
[1728070596088,5.89267384,62458.0,62457.0,3.67089771]
[1728070597244,6.34559497,62458.0,62457.0,3.67089771]
[1728070597473,6.48665395,62458.0,62457.0,3.67089771]
[1728070598751,6.46154578,62458.0,62457.0,3.67089771]
[1728070599878,6.46193678,62458.0,62457.0,3.67089771]
[1728070601065,6.45884198,62458.0,62457.0,3.67089771]
[1728070601721,6.48395123,62458.0,62457.0,3.67089771]
[1728070602411,6.3459857,62458.0,62457.0,3.67089771]
[1728070602616,6.2219857,62458.0,62457.0,3.67089771]
[1728070602824,5.2549857,62458.0,62457.0,3.67089771]
[1728070603053,5.22987645,62458.0,62457.0,3.67089771]
[1728070605911,5.49077649,62458.0,62457.0,3.67089771]
[1728070606129,5.48877649,62458.0,62457.0,3.67089771]
[1728070606361,5.48877649,62458.0,62457.0,3.84749771]
[1728070606362,4.54998541,62458.0,62457.0,3.84749771]
[1728070606602,2.51867616,62458.0,62457.0,3.84749771]
[1728070606830,2.47299385,62458.0,62457.0,3.84749771]
[1728070607492,2.49599385,62458.0,62457.0,3.84749771]
[1728070608556,2.47088489,62458.0,62457.0,3.84749771]
[1728070609015,1.83588489,62458.0,62457.0,3.84749771]
[1728070609232,1.82582799,62458.0,62457.0,3.84749771]
[1728070609962,0.81482799,62458.0,62457.0,3.84749771]
[1728070610186,0.52646276,62458.0,62457.0,3.84749771]
[1728070610394,0.50346276,62458.0,62457.0,3.84749771]
[1728070610604,1.80382799,62458.0,62457.0,3.84749771]
[1728070610851,0.79182799,62458.0,62457.0,3.84749771]
[1728070611064,0.50346276,62458.0,62457.0,3.84749771]
[1728070611975,0.52856927,62458.0,62457.0,3.84749771]
[1728070612675,0.69050972,62458.0,62457.0,3.84749771]
[1728070612887,0.66540321,62458.0,62457.0,3.84749771]
[1728070613822,0.95463201,62458.0,62457.0,3.84749771]
[1728070614274,0.66575112,62458.0,62457.0,3.84749771]
[1728070614752,0.50383109,62458.0,62457.0,3.84749771]
[1728070615194,0.66575112,62458.0,62457.0,3.84749771]
[1728070615642,0.50383109,62458.0,62457.0,3.84749771]
[1728070616124,0.66561579,62458.0,62457.0,3.84749771]
[1728070616347,0.69072237,62458.0,62457.0,3.84749771]
[1728070616561,0.52884209,62458.0,62457.0,3.84749771]
[1728070617423,0.55395051,62458.0,62457.0,3.84749771]
[1728070618597,0.52884393,62458.0,62457.0,3.84749771]
[1728070620255,0.55395058,62458.0,62457.0,3.84749771]
[1728070621920,0.34770267,62458.0,62457.0,3.84749771]
[1728070622134,0.55391529,62458.0,62457.0,3.84749771]
[1728070625073,0.52880864,62458.0,62457.0,3.84749771]
[1728070627774,0.553915,62458.0,62457.0,3.84749771]
[1728070629175,0.52880864,62458.0,62457.0,3.84749771]
[1728070632711,0.52880864,62458.0,62457.0,3.96791171]
[1728070633152,0.52880864,62458.0,62457.0,3.84749771]
[1728070635640,0.36870164,62458.0,62457.0,3.96791171]
[1728070635883,0.36870164,62458.0,62457.0,4.12802171]
[1728070636316,0.36096504,62458.0,62457.0,4.12802171]
[1728070636497,0.36199961,62458.0,62457.0,4.12802171]
[1728070636784,0.38710363,62458.0,62457.0,4.12802171]
[1728070636971,0.39374066,62458.0,62457.0,3.96791171]
[1728070637404,0.37974066,62458.0,62457.0,3.96791171]
[1728070637678,0.37974066,62458.0,62457.0,4.0309384]
[1728070637872,0.37474066,62458.0,62457.0,4.0309384]
[1728070638326,0.37674066,62458.0,62457.0,4.0309384]
[1728070638562,0.37574066,62458.0,62457.0,4.0309384]
[1728070638796,0.34863664,62458.0,62457.0,4.1910484]
[1728070639030,0.35095192,62458.0,62457.0,4.1910484]
[1728070639255,0.35695192,62458.0,62457.0,4.1910484]
[1728070639894,0.34699961,62458.0,62457.0,4.1910484]
[1728070640362,0.4669039,62458.0,62457.0,4.1910484]
[1728070640583,0.34699961,62458.0,62457.0,4.1910484]
[1728070640801,0.34994971,62458.0,62457.0,4.1910484]
[1728070641023,0.34499961,62458.0,62457.0,4.1910484]
[1728070641241,0.08407353,62458.0,62457.0,4.1910484]
[1728070641465,0.04795473,62460.0,62459.0,0.497708]
[1728070641714,0.07194767,62464.0,62463.0,0.160094]
[1728070641930,0.07194767,62465.0,62464.0,0.236892]
[1728070642174,0.07194767,62465.0,62464.0,0.51703269]
[1728070642415,0.01244294,62465.0,62464.0,0.51703269]
[1728070642639,0.01244294,62465.0,62464.0,0.36094069]
[1728070643351,0.03754364,62465.0,62464.0,0.36094069]
[1728070643568,0.03854364,62465.0,62464.0,0.52103269]
[1728070643785,0.03854364,62465.0,62464.0,0.36094069]
[1728070644635,0.04054364,62465.0,62464.0,0.52103269]
[1728070644892,0.03439599,62465.0,62464.0,0.52103269]
[1728070645119,0.03339599,62465.0,62464.0,0.52103269]
[1728070645350,0.03439599,62465.0,62464.0,0.52103269]
[1728070646251,0.01029529,62465.0,62464.0,0.52103269]
[1728070647571,0.00929529,62465.0,62464.0,0.52103269]
[1728070648212,0.00929529,62465.0,62464.0,0.52203269]
[1728070649165,0.03439582,62465.0,62464.0,0.52203269]
[1728070650595,0.00929529,62465.0,62464.0,0.52203269]
[1728070651531,0.21596507,62465.0,62464.0,0.52203269]
[1728070652010,0.31182679,62465.0,62464.0,0.52203269]
[1728070652451,0.21596507,62465.0,62464.0,0.52203269]
[1728070652685,0.31182679,62465.0,62464.0,0.52203269]
[1728070653117,0.21596507,62465.0,62464.0,0.52203269]
[1728070653564,0.00929529,62465.0,62464.0,0.52203269]
[1728070654227,0.01093729,62465.0,62464.0,0.52203269]
[1728070654483,0.08284246,62465.0,62464.0,0.52203269]
[1728070654678,0.01093729,62465.0,62464.0,0.52203269]
[1728070656415,0.08284372,62465.0,62464.0,0.34453269]
[1728070656666,5.66480032,62465.0,62457.0,3.67089771]
[1728070656916,0.44554769,62458.0,62457.0,3.67089771]
[1728070657158,0.67520178,62458.0,62457.0,3.67089771]
[1728070657391,1.01447663,62458.0,62457.0,3.67089771]
[1728070657646,6.7743418,62458.0,62457.0,3.67089771]
[1728070657881,6.5581768,62458.0,62457.0,3.67089771]
[1728070658416,6.76903013,62458.0,62457.0,3.67289771]
[1728070660081,6.53305375,62458.0,62457.0,3.67289771]
[1728070660838,6.50794545,62458.0,62457.0,3.67289771]
[1728070661285,6.53305508,62458.0,62457.0,3.67289771]
[1728070662480,6.53755029,62458.0,62457.0,3.67289771]
[1728070663197,6.777837,62458.0,62457.0,3.67289771]
[1728070663415,6.83304255,62458.0,62457.0,3.67289771]
[1728070664979,6.64474621,62458.0,62457.0,3.67289771]
[1728070665197,6.58954066,62458.0,62457.0,3.67289771]
[1728070665390,6.54466216,62458.0,62457.0,3.67289771]
[1728070665649,6.54861686,62458.0,62457.0,3.67289771]
[1728070666596,6.64461686,62458.0,62457.0,3.67289771]
[1728070666812,6.88811888,62458.0,62457.0,3.67289771]
[1728070669550,6.47481419,62458.0,62457.0,3.67289771]
[1728070669791,6.31162748,62458.0,62457.0,3.67289771]
[1728070670036,6.25642193,62458.0,62457.0,3.67289771]
[1728070675442,6.41784701,62458.0,62457.0,3.67289771]
[1728070675679,6.35490686,62458.0,62457.0,3.67289771]
[1728070677245,6.25890686,62458.0,62457.0,3.67289771]
[1728070677919,6.2337971,62458.0,62457.0,3.67289771]
[1728070678377,6.22573639,62458.0,62457.0,3.67289771]
[1728070679497,6.3889231,62458.0,62457.0,3.67289771]
[1728070679712,6.22751729,62458.0,62457.0,3.67289771]
[1728070680122,6.27258011,62458.0,62457.0,3.67289771]
[1728070680348,6.1093934,62458.0,62457.0,3.67289771]
[1728070682364,6.13450277,62458.0,62457.0,3.67289771]
[1728070683738,6.05740277,62458.0,62457.0,3.67289771]
[1728070684409,6.21735419,62458.0,62457.0,3.67289771]
[1728070684638,6.05600277,62458.0,62457.0,3.67289771]
[1728070687231,5.56819713,62458.0,62457.0,3.67289771]
[1728070687444,6.05483392,62458.0,62457.0,3.67289771]
[1728070687919,1.00483392,62458.0,62457.0,3.67289771]
[1728070688129,0.67589964,62458.0,62457.0,3.67289771]
[1728070688351,6.05483392,62458.0,62457.0,3.67289771]
[1728070688559,6.02972455,62458.0,62457.0,3.67289771]
[1728070690361,6.18560721,62458.0,62457.0,3.67289771]
[1728070693135,6.21071654,62458.0,62457.0,3.67289771]
[1728070694035,6.05483388,62458.0,62457.0,3.67289771]
[1728070695565,6.46053697,62458.0,62457.0,3.67289771]
[1728070696977,6.46091524,62458.0,62457.0,3.67289771]
[1728070698924,6.16554128,62458.0,62457.0,3.54480971]
[1728070699223,6.46562299,62458.0,62457.0,3.54480971]
[1728070699448,6.63266496,62458.0,62457.0,3.51278771]
[1728070699911,6.61866496,62458.0,62457.0,3.51178771]
[1728070700145,6.59355563,62458.0,62457.0,3.51178771]
[1728070700363,6.60755563,62458.0,62457.0,3.51178771]
[1728070700607,6.31686838,62458.0,62457.0,3.51178771]
[1728070700818,5.83953946,62458.0,62457.0,3.51178771]
[1728070701475,5.3385244,62458.0,62457.0,3.51078771]
[1728070701708,5.84681251,62458.0,62457.0,3.51078771]
[1728070701922,6.06011082,62458.0,62457.0,3.51078771]
[1728070702132,6.04611082,62458.0,62457.0,3.51078771]
[1728070702341,6.45844158,62458.0,62457.0,3.51078771]
[1728070702552,6.47244158,62458.0,62457.0,3.51078771]
[1728070702769,6.45844158,62458.0,62457.0,3.51078771]
[1728070703037,6.51883043,62458.0,62457.0,3.51078771]
[1728070703267,6.50483043,62458.0,62457.0,3.51078771]
[1728070703502,6.54193972,62458.0,62457.0,3.51078771]
[1728070703765,6.54358172,62458.0,62457.0,3.51078771]
[1728070704186,6.38039501,62458.0,62457.0,3.51078771]
[1728070704402,6.33400616,62458.0,62457.0,3.51078771]
[1728070704613,6.38034401,62458.0,62457.0,3.51078771]
[1728070705682,6.38234401,62458.0,62457.0,3.51078771]
[1728070706310,6.38034401,62458.0,62457.0,3.51078771]
[1728070706522,6.35519135,62458.0,62457.0,3.51078771]
[1728070708067,6.35719135,62458.0,62457.0,3.51078771]
[1728070708984,7.00336087,62458.0,62457.0,3.51078771]
[1728070709719,7.02846963,62458.0,62457.0,3.51078771]
[1728070710379,7.02646963,62458.0,62457.0,3.51078771]
[1728070710774,7.00136087,62458.0,62457.0,3.51078771]
[1728070711109,7.00132164,62458.0,62457.0,3.51078771]
[1728070711321,7.00332164,62458.0,62457.0,3.51078771]
[1728070711543,7.00132164,62458.0,62457.0,3.51078771]
[1728070712884,6.89054933,62458.0,62457.0,3.51078771]
[1728070713779,6.91565812,62458.0,62457.0,3.51078771]
[1728070714688,6.91565812,62458.0,62457.0,3.58988771]
[1728070714689,1.95865812,62458.0,62457.0,3.58988771]
[1728070714898,1.13963567,62458.0,62457.0,3.68638771]
[1728070715537,1.12563567,62458.0,62457.0,3.68638771]
[1728070716011,1.12363567,62458.0,62457.0,3.68638771]
[1728070716440,1.13763567,62458.0,62457.0,3.68638771]
[1728070717131,1.13763567,62458.0,62457.0,3.09373213]
[1728070717132,1.24967083,62458.0,62457.0,3.09373213]
[1728070717422,1.35363329,62458.0,62457.0,3.09373213]
[1728070717643,1.42246162,62458.0,62457.0,3.09373213]
[1728070717859,1.42246162,62458.0,62457.0,3.06171013]
[1728070718075,1.09435283,62458.0,62457.0,2.93362213]
[1728070718268,6.14435283,62458.0,62457.0,2.93362213]
[1728070718509,6.50571614,62458.0,62457.0,2.93362213]
[1728070718974,6.50571614,62458.0,62457.0,2.86957813]
[1728070719192,6.51971614,62458.0,62457.0,2.86957813]
[1728070719406,6.50571614,62458.0,62457.0,2.80553413]
[1728070719845,6.51971614,62458.0,62457.0,2.80553413]
[1728070720070,6.51971614,62458.0,62457.0,2.74149013]
[1728070720296,6.50571614,62458.0,62457.0,2.74149013]
[1728070720516,6.50571614,62458.0,62457.0,2.70946813]
[1728070720735,6.534013,62458.0,62457.0,2.64542413]
[1728070720952,6.534013,62458.0,62457.0,2.54935813]
[1728070721414,6.54512516,62458.0,62457.0,2.48531413]
[1728070721657,6.3264773,62458.0,62457.0,2.48531413]
[1728070721870,6.45197784,62458.0,62457.0,2.48531413]
[1728070722085,6.44697784,62458.0,62457.0,2.48531413]
[1728070722574,6.43297784,62458.0,62457.0,2.48531413]
[1728070722796,6.5509403,62458.0,62457.0,2.48531413]
[1728070723036,6.70012701,62458.0,62457.0,2.48531413]
[1728070723273,6.68612701,62458.0,62457.0,2.48531413]
[1728070723498,6.71412701,62458.0,62457.0,2.48531413]
[1728070723974,6.70012701,62458.0,62457.0,2.48531413]
[1728070724224,6.71412701,62458.0,62457.0,2.48531413]
[1728070724439,6.74423896,62458.0,62457.0,2.32520413]
[1728070725983,6.6402765,62458.0,62457.0,2.32520413]
[1728070726932,6.47708979,62458.0,62457.0,2.32520413]
[1728070727410,6.06343623,62458.0,62457.0,2.32520413]
[1728070727881,6.48746314,62458.0,62457.0,2.32520413]
[1728070728569,6.46235119,62458.0,62457.0,2.32520413]
[1728070728804,6.45735119,62458.0,62457.0,2.32520413]
[1728070729767,6.6205379,62458.0,62457.0,2.32520413]
[1728070729992,1.5705379,62458.0,62457.0,2.32520413]
[1728070730231,6.03332428,62458.0,62457.0,2.32520413]
[1728070730505,6.46235119,62458.0,62457.0,2.32520413]
[1728070730999,6.50884086,62458.0,62457.0,2.32520413]
[1728070731214,6.74544402,62458.0,62457.0,2.32520413]
[1728070731444,6.50884086,62458.0,62457.0,2.32520413]
[1728070731805,6.90856508,62458.0,62457.0,2.32520413]
[1728070732022,6.67202757,62458.0,62457.0,2.32520413]
[1728070732232,6.77599003,62458.0,62457.0,2.32520413]
[1728070732671,7.01252458,62458.0,62457.0,2.31631103]
[1728070734260,6.77599003,62458.0,62457.0,2.31631103]
[1728070734533,7.32688338,62458.0,62457.0,2.31631103]
[1728070735226,7.32684359,62458.0,62457.0,2.31631103]
[1728070735882,7.35195572,62458.0,62457.0,2.31631103]
[1728070736495,7.35195248,62458.0,62457.0,2.31631103]
[1728070737762,7.35195248,62458.0,62457.0,2.30059238]
[1728070738604,7.32684035,62458.0,62457.0,2.30059238]
[1728070740108,7.32692074,62458.0,62457.0,2.30059238]
[1728070740561,7.05977157,62458.0,62457.0,2.30059238]
[1728070743261,6.76309809,62458.0,62457.0,2.30059238]
[1728070743474,7.06001343,62458.0,62457.0,2.30059238]
[1728070744904,4.98912273,62458.0,62457.0,2.37839238]
[1728070745121,3.85861954,62458.0,62457.0,2.47499238]
[1728070746030,3.86029119,62458.0,62457.0,2.47499238]
[1728070746262,1.70540108,62458.0,62457.0,2.47499238]
[1728070746486,1.2488845,62458.0,62457.0,2.47499238]
[1728070746937,1.2348845,62458.0,62457.0,2.47499238]
[1728070747176,1.2488845,62458.0,62457.0,2.47499238]
[1728070747639,1.2578845,62458.0,62457.0,2.47499238]
[1728070747860,0.8878845,62458.0,62457.0,2.47499238]
[1728070748067,0.36338789,62458.0,62457.0,2.47499238]
[1728070748324,6.39444397,62458.0,62457.0,2.47499238]
[1728070748539,6.40844397,62458.0,62457.0,2.47499238]
[1728070748769,6.38333408,62458.0,62457.0,2.47499238]
[1728070749214,5.48833408,62458.0,62457.0,2.47499238]
[1728070749400,4.26776252,62458.0,62457.0,2.47499238]
[1728070749718,3.78033408,62458.0,62457.0,2.47499238]
[1728070750180,4.01676092,62458.0,62457.0,2.47499238]
[1728070750419,3.78033408,62458.0,62457.0,2.47499238]
[1728070751155,2.79033408,62458.0,62457.0,2.47499238]
[1728070751400,2.55621279,62458.0,62457.0,2.47499238]
[1728070751624,2.3198175,62458.0,62457.0,2.47499238]
[1728070751859,2.34492728,62458.0,62457.0,2.47499238]
[1728070752083,2.58132257,62458.0,62457.0,2.47499238]
[1728070752555,2.34492728,62458.0,62457.0,2.47499238]
[1728070755080,2.46542782,62458.0,62457.0,2.47499238]
[1728070755292,2.46742782,62458.0,62457.0,2.47499238]
[1728070755509,2.63061453,62458.0,62457.0,2.47499238]
[1728070755721,2.6771042,62458.0,62457.0,2.47499238]
[1728070758596,2.6751042,62458.0,62457.0,2.47499238]
[1728070758808,2.65199442,62458.0,62457.0,2.47499238]
[1728070759031,2.64999442,62458.0,62457.0,2.47499238]
[1728070759299,2.36630717,62458.0,62457.0,2.47499238]
[1728070759509,2.3198175,62458.0,62457.0,2.47499238]
[1728070759931,2.55616677,62458.0,62457.0,2.47499238]
[1728070760371,2.3198175,62458.0,62457.0,2.47499238]
[1728070762055,2.34492724,62458.0,62457.0,2.47499238]
[1728070762270,2.58127651,62458.0,62457.0,2.47499238]
[1728070762484,2.38742701,62458.0,62457.0,2.47499238]
[1728070762693,2.38942701,62458.0,62457.0,2.47499238]
[1728070766823,2.38742701,62458.0,62457.0,2.47499238]
[1728070767293,2.3854177,62458.0,62457.0,2.47499238]
[1728070767968,0.9284177,62458.0,62457.0,2.47499238]
[1728070768194,5.9784177,62458.0,62457.0,2.47499238]
[1728070768429,6.44893428,62458.0,62457.0,2.47499238]
[1728070768642,6.42382454,62458.0,62457.0,2.47499238]
[1728070770254,6.42382454,62458.0,62457.0,2.30059238]
[1728070775168,7.01103474,62458.0,62457.0,2.26857038]
[1728070775403,6.75317971,62458.0,62457.0,2.14048238]
[1728070775636,6.91636642,62458.0,62457.0,2.14048238]
[1728070775845,6.67988369,62458.0,62457.0,2.14048238]
[1728070776069,6.7049959,62458.0,62457.0,1.98037238]
[1728070776282,6.49013698,62458.0,62457.0,1.98037238]
[1728070776928,6.47613698,62458.0,62457.0,1.98037238]
[1728070777143,6.46213698,62458.0,62457.0,1.98037238]
[1728070777388,6.41343698,62458.0,62457.0,1.98037238]
[1728070777829,6.39943698,62458.0,62457.0,1.98037238]
[1728070778268,6.46510919,62458.0,62457.0,1.98037238]
[1728070778495,6.43999698,62458.0,62457.0,1.98037238]
[1728070779508,6.52703443,62458.0,62457.0,1.98037238]
[1728070781065,6.43999698,62458.0,62457.0,1.88430638]
[1728070781276,6.43999698,62458.0,62457.0,1.82026238]
[1728070781725,6.442558,62458.0,62457.0,1.82026238]
[1728070781939,6.46767014,62458.0,62457.0,1.78824038]
[1728070782168,6.46767014,62458.0,62457.0,1.66015238]
[1728070782169,6.58436718,62458.0,62457.0,1.66015238]
[1728070782626,6.30074374,62458.0,62457.0,1.12014373]
[1728070782848,6.30074374,62458.0,62457.0,1.08812173]
[1728070783106,6.39374374,62458.0,62457.0,0.96003373]
[1728070783330,6.81895027,62458.0,62457.0,0.96003373]
[1728070783538,6.36578374,62458.0,62457.0,0.96003373]
[1728070783782,6.80496535,62458.0,62457.0,0.96003373]
[1728070783999,6.81896535,62458.0,62457.0,0.89598973]
[1728070784255,6.81896535,62458.0,62457.0,0.83194573]
[1728070784460,6.81896535,62458.0,62457.0,0.79992373]
[1728070784877,6.81896535,62458.0,62457.0,0.76790173]
[1728070785328,6.81896535,62458.0,62457.0,0.70385773]
[1728070785754,7.00266022,62458.0,62457.0,0.63981373]
[1728070786184,7.00266022,62458.0,62457.0,0.57576973]
[1728070786461,0.007,62453.0,62452.0,0.001642]
[1728070786670,0.47382787,62448.0,62447.0,0.000821]
[1728070786935,6.03366518,62448.0,62447.0,0.000821]
[1728070787387,6.09679833,62448.0,62447.0,0.000821]
[1728070788097,6.16247054,62448.0,62447.0,0.000821]
[1728070788341,6.32565725,62448.0,62447.0,0.000821]
[1728070788554,6.33965725,62448.0,62447.0,0.000821]
[1728070789484,1.28965725,62448.0,62447.0,0.000821]
[1728070789704,6.33965725,62448.0,62447.0,0.000821]
[1728070789914,6.35365725,62448.0,62447.0,0.000821]
[1728070790123,6.33965725,62448.0,62447.0,0.000821]
[1728070790350,6.32565725,62448.0,62447.0,0.000821]
[1728070790826,6.33965725,62448.0,62447.0,0.000821]
[1728070791076,6.33813097,62448.0,62447.0,0.000821]
[1728070795969,6.3378432,62448.0,62447.0,0.000821]
[1728070796416,6.3373962,62448.0,62447.0,0.000821]
[1728070796635,6.3863104,62448.0,62447.0,0.000821]
[1728070797488,5.71796592,62448.0,62447.0,0.000821]
[1728070797706,6.48070563,62448.0,62447.0,0.000821]
[1728070797947,6.98909662,62448.0,62447.0,0.000821]
[1728070798603,0.261693,62445.0,62444.0,0.09415688]
[1728070798823,5.3469832,62445.0,62444.0,0.09415688]
[1728070799013,5.3958974,62445.0,62444.0,0.09415688]
[1728070799281,5.3958974,62445.0,62427.0,0.000447]
[1728070799282,0.160176,62431.0,62427.0,0.000447]
[1728070799499,0.260176,62431.0,62427.0,0.000447]
[1728070799756,0.580542,62430.0,62429.0,0.000447]
[1728070799984,0.580542,62430.0,62428.0,0.000447]
[1728070799985,0.260181,62429.0,62428.0,0.000447]
[1728070800436,0.27298487,62429.0,62428.0,0.18414187]
[1728070800657,0.11280387,62429.0,62428.0,0.18414187]
[1728070800904,0.13792102,62429.0,62428.0,0.18414187]
[1728070801142,0.34648679,62429.0,62428.0,0.18414187]
[1728070801400,0.52855661,62429.0,62428.0,0.18414187]
[1728070801632,0.260184,62428.0,62427.0,0.000447]
[1728070801885,0.160189,62426.0,62425.0,0.18414187]
[1728070802129,0.30845459,62426.0,62425.0,0.18414187]
[1728070802360,0.30845459,62426.0,62425.0,0.35954187]
[1728070802361,0.32109569,62426.0,62425.0,0.35954187]
[1728070803282,0.41705052,62426.0,62425.0,0.35954187]
[1728070803742,0.32809569,62426.0,62425.0,0.35954187]
[1728070804185,0.48828469,62426.0,62425.0,0.35954187]
[1728070804400,0.49728469,62426.0,62425.0,0.35954187]
[1728070804615,0.49728469,62426.0,62425.0,0.175847]
[1728070805283,0.33709569,62426.0,62425.0,0.175847]
[1728070805805,0.320355,62431.0,62428.0,0.000447]
[1728070805806,0.07195817,62429.0,62428.0,0.000447]
[1728070806048,0.33645574,62434.0,62433.0,0.000447]
[1728070806281,0.54542311,62434.0,62433.0,0.172747]
[1728070806535,0.30491901,62434.0,62433.0,0.172747]
[1728070806784,0.121066,62434.0,62433.0,0.172747]
[1728070807009,0.33408173,62434.0,62433.0,0.2892325]
[1728070807274,0.43002804,62434.0,62433.0,0.2872325]
[1728070807542,0.44002804,62434.0,62433.0,0.2872325]
[1728070807794,0.07196203,62435.0,62433.0,0.1204855]
[1728070808029,0.28847597,62439.0,62437.0,0.258061]
[1728070808237,0.28847597,62439.0,62437.0,0.1204855]
[1728070808454,0.04797187,62438.0,62437.0,0.2806455]
[1728070808668,0.04797187,62438.0,62437.0,0.1204855]
[1728070808887,0.04797187,62438.0,62437.0,0.2094855]
[1728070809146,0.04797187,62438.0,62437.0,0.3696465]
[1728070809395,0.04796929,62438.0,62437.0,0.6899675]
[1728070809644,0.04796929,62438.0,62437.0,0.76002008]
[1728070809896,0.04796929,62438.0,62435.0,0.320329]
[1728070809897,0.09594938,62445.0,62444.0,0.0101]
[1728070810107,0.2405041,62446.0,62444.0,0.0101]
[1728070810374,0.12106789,62448.0,62445.0,0.0769]
[1728070810375,0.02511851,62448.0,62445.0,0.0769]
[1728070811299,0.1,62450.0,62445.0,0.0769]
[1728070811528,0.1,62450.0,62445.0,0.0759]
[1728070812007,0.44018072,62453.0,62448.0,0.0971]
[1728070812008,0.09594938,62453.0,62448.0,0.0971]
[1728070812256,0.02510793,62449.0,62448.0,0.257232]
[1728070812488,0.11993672,62457.0,62448.0,0.257232]
[1728070812489,0.09588372,62455.0,62448.0,0.257232]
[1728070812699,0.09588372,62455.0,62448.0,0.0971]
[1728070812949,0.30399769,62455.0,62448.0,0.0971]
[1728070813206,0.005,62450.0,62449.0,0.160129]
[1728070813423,0.01076365,62454.0,62448.0,0.0951]
[1728070813661,0.01074464,62450.0,62449.0,0.48039]
[1728070813879,0.104,62455.0,62450.0,0.160127]
[1728070814116,0.004,62455.0,62451.0,0.320249]
[1728070814369,0.004,62455.0,62454.0,0.18353808]
[1728070814603,0.004,62455.0,62454.0,0.26603808]
[1728070815520,0.101682,62458.0,62454.0,0.18353808]
[1728070815741,0.101682,62458.0,62455.0,0.0784]
[1728070816173,0.001682,62458.0,62456.0,0.0927]
[1728070816393,0.001682,62458.0,62457.0,0.33501]
[1728070817350,0.005682,62458.0,62457.0,0.33501]
[1728070818330,0.001642,62464.0,62460.0,0.0751]
[1728070818563,0.001642,62464.0,62463.0,0.42223208]
[1728070819041,0.01807913,62464.0,62463.0,0.42223208]
[1728070819537,0.01807913,62464.0,62463.0,0.51943208]
[1728070820451,0.001642,62464.0,62463.0,0.52843208]
[1728070820695,0.01804213,62464.0,62463.0,0.52843208]
[1728070820969,0.001642,62464.0,62463.0,0.52443208]
[1728070821651,0.001642,62464.0,62463.0,0.52343208]
[1728070822128,0.001642,62464.0,62463.0,0.36833808]
[1728070822823,0.221012,62464.0,62463.0,0.0786]
[1728070823074,0.221012,62464.0,62463.0,0.001]
[1728070823075,0.321012,62464.0,62463.0,0.001]
[1728070823276,0.11256228,62464.0,62457.0,0.0772]
[1728070823492,0.160107,62458.0,62457.0,0.0772]
[1728070823927,0.17138566,62458.0,62457.0,0.0772]
[1728070824381,0.1,62457.0,62450.0,0.079]
[1728070824613,0.160125,62451.0,62450.0,0.079]
[1728070824830,0.17657522,62451.0,62450.0,0.079]
[1728070825045,0.1879713,62451.0,62450.0,0.079]
[1728070825487,0.2879713,62451.0,62450.0,0.079]
[1728070826392,0.2879713,62451.0,62450.0,0.083]
[1728070827252,0.2879713,62451.0,62450.0,0.081]
[1728070827736,0.0318463,62451.0,62450.0,0.081]
[1728070827974,0.0318463,62451.0,62450.0,0.340528]
[1728070827975,0.01139608,62451.0,62450.0,0.340528]
[1728070828205,0.01655197,62451.0,62450.0,0.340528]
[1728070828433,0.01659737,62458.0,62456.0,0.160111]
[1728070828654,0.01131328,62457.0,62456.0,0.160111]
[1728070828860,0.01659758,62457.0,62456.0,0.160111]
[1728070829291,0.01659758,62457.0,62456.0,0.153111]
[1728070829502,0.02791086,62457.0,62456.0,0.153111]
[1728070829719,0.01659758,62457.0,62456.0,0.232111]
[1728070829931,0.01659758,62457.0,62456.0,0.231111]
[1728070830380,0.01659758,62457.0,62456.0,0.078]
[1728070830603,0.01659758,62457.0,62456.0,0.238112]
[1728070831063,0.01659758,62457.0,62456.0,0.240112]
[1728070831495,0.01659758,62457.0,62456.0,0.242112]